Workbook

Sheet Recurve
A1: Scores 25m 1 pijl competitie 2019-2020 Regio 115 - Recurve
A2: Bondsnr. | B2: Naam | C2: Vereniging | D2: Klasse | F2: 1 | G2: 2 | H2: 3 | I2: 4 | J2: 5 | K2: 6 | L2: 7 | M2: Gem. | N2: Tot. | O2: Vorig gem.
A3: 168024 | B3: Maurice Giebels | C3: St. Hubertus [1171] | D3: Senior | F3: 214 | M3: =F3/25 -> 8.560 | N3: =SUM(F3:L3) -> 214
A4: 141040 | B4: Leo Saes | C4: St. Hubertus [1171] | D4: Veteraan | F4: 182 | M4: =F4/25 -> 7.280 | N4: =SUM(F4:L4) -> 182 | O4: 6.520
A5: 142811 | B5: Joost Gijsen | C5: St. Hubertus [1171] | D5: Senior | M5: 0.000 | N5: 0 | O5: 9.280
A6: 150514 | B6: Tim Freriks | C6: St. Hubertus [1171] | D6: Senior | F6: 231 | M6: 9.240 | N6: 231 | O6: 9.333
A7: 159613 | B7: Luuk Vorselen | C7: St. Hubertus [1171] | D7: Senior | F7: 206 | M7: 8.240 | N7: 206 | O7: 8.376
A8: 170824 | B8: Ruud Creemers | C8: St. Hubertus [1171] | D8: Koning | F8: 227 | M8: 9.080 | N8: 227 | O8: 9.333
A9: 174249 | B9: Anja Scheffers | C9: St. Hubertus [1171] | D9: Master | E9: D | M9: 0.000 | N9: 0
A10: 173465 | B10: Arjen Steijvers | C10: St. Hubertus [1171] | D10: Senior | F10: 216 | M10: 8.640 | N10: 216
A11: 173981 | B11: Reinier Vriezema | C11: St. Hubertus [1171] | D11: Senior | F11: 216 | M11: 8.640 | N11: 216 | O11: 8.320
A12: 104851 | B12: Peter Bax | C12: Grensjagers [1172] | D12: Veteraan | F12: 151 | M12: 6.040 | N12: 151 | O12: 6.093
A13: 116378 | B13: Jochem Looijmans | C13: Grensjagers [1172] | D13: Senior | F13: 226 | M13: 9.040 | N13: 226 | O13: 9.133
A14: 119618 | B14: Rien van Rooy | C14: Grensjagers [1172] | D14: Veteraan | F14: 156 | M14: 6.240 | N14: 156 | O14: 6.853
A15: 137735 | B15: Mike Meurkens | C15: Grensjagers [1172] | D15: Senior | F15: 223 | M15: 8.920 | N15: 223 | O15: 8.167
A16: 159463 | B16: Jacqueline Looijmans | C16: Grensjagers [1172] | D16: Senior | E16: D | F16: 192 | M16: 7.680 | N16: 192 | O16: 8.208
A17: 162047 | B17: Christ Meurkens | C17: Grensjagers [1172] | D17: Veteraan | F17: 188 | M17: 7.520 | N17: 188 | O17: 7.607
A18: 168463 | B18: Ayla Kissen | C18: Grensjagers [1172] | D18: Senior | E18: D | M18: 0.000 | N18: 0 | O18: 7.167
A19: 169678 | B19: Luc Compen | C19: Grensjagers [1172] | D19: Veteraan | F19: 155 | M19: 6.200 | N19: 155 | O19: 6.773
A20: 170738 | B20: Jelte Steer | C20: Grensjagers [1172] | D20: Cadet | F20: 225 | M20: 9.000 | N20: 225 | O20: 8.880
A21: 170739 | B21: Rob Jansen | C21: Grensjagers [1172] | D21: Senior | F21: 182 | M21: 7.280 | N21: 182 | O21: 7.160
A22: 172742 | B22: Albert Steer | C22: Grensjagers [1172] | D22: Master | F22: 197 | M22: 7.880 | N22: 197 | O22: 7.840
A23: 174481 | B23: Jan van de Vorst | C23: Grensjagers [1172] | D23: Veteraan | F23: 207 | M23: 8.280 | N23: 207 | O23: 7.653
B24: Lynn Bergerhof | C24: Grensjagers [1172] | E24: D | F24: 149 | M24: 5.960 | N24: 149 | P24: niet aangemeld voor competitie
A25: 104903 | B25: Bert Neijnens | C25: Ontspanning [1174] | D25: Veteraan | F25: 185 | M25: 7.400 | N25: 185 | O25: 8.273
A26: 110819 | B26: Jan Nijs | C26: Ontspanning [1174] | D26: Veteraan | M26: 0.000 | N26: 0 | O26: 7.473
A27: 140909 | B27: John Driessen | C27: Ontspanning [1174] | D27: Master | F27: 221 | M27: 8.840 | N27: 221
A28: 150256 | B28: Harrie Peters | C28: Ontspanning [1174] | D28: Veteraan | M28: 0.000 | N28: 0 | O28: 6.773
A29: 159519 | B29: Leen van den Broek | C29: Ontspanning [1174] | D29: Master | F29: 188 | M29: 7.520 | N29: 188 | O29: 8.020
A30: 164030 | B30: Marlon Camp | C30: Ontspanning [1174] | D30: Junior | F30: 219 | M30: 8.760 | N30: 219 | O30: 9.373
A31: 164058 | B31: Michael Verkoulen | C31: Ontspanning [1174] | D31: Junior | F31: 129 | M31: 5.160 | N31: 129 | O31: 5.147
A32: 164982 | B32: David Verkoulen | C32: Ontspanning [1174] | D32: Junior | F32: 232 | M32: 9.280 | N32: 232 | O32: 9.080
A33: 165347 | B33: Koos van Lieshout | C33: Ontspanning [1174] | D33: Veteraan | F33: 194 | M33: 7.760 | N33: 194 | O33: 7.947
A34: 169816 | B34: Mike Brunenberg | C34: Ontspanning [1174] | D34: asp. 11-12 | F34: 174 | M34: 6.960 | N34: 174 | O34: 6.487
A35: 175721 | B35: Mat van Leuken | C35: Ontspanning [1174] | D35: Master | F35: 206 | M35: 8.240 | N35: 206
A36: 172489 | B36: Bastiaan Barendrecht | C36: Ontspanning [1174] | F36: 172 | M36: 6.880 | N36: 172 | P36: niet aangemeld voor competitie
A37: 114648 | B37: Herman Geraedts | C37: Vriendschap en Strijd [1178] | D37: Veteraan | F37: 218 | M37: 8.720 | N37: 218 | O37: 8.787
A38: 116123 | B38: Rien Geraedts-Aarns | C38: Vriendschap en Strijd [1178] | D38: Veteraan | E38: D | F38: 212 | M38: 8.480 | N38: 212
A39: 117152 | B39: Theo Baetsen | C39: Vriendschap en Strijd [1178] | D39: Master | F39: 237 | M39: 9.480 | N39: 237 | O39: 9.353
A40: 139032 | B40: Frank Wijnen | C40: Vriendschap en Strijd [1178] | D40: Senior | F40: 234 | M40: 9.360 | N40: 234 | O40: 9.373
A41: 151524 | B41: Maarten Greyn | C41: Vriendschap en Strijd [1178] | D41: Senior | M41: 0.000 | N41: 0 | O41: 8.667
A42: 151903 | B42: Marcel Baetsen | C42: Vriendschap en Strijd [1178] | D42: Senior | F42: 198 | M42: 7.920 | N42: 198 | O42: 8.787
A43: 156823 | B43: Joeri Heutmekers | C43: Vriendschap en Strijd [1178] | D43: Senior | F43: 221 | M43: 8.840 | N43: 221 | O43: 9.100
A44: 156824 | B44: Corné Heutmekers | C44: Vriendschap en Strijd [1178] | D44: Senior | F44: 212 | M44: 8.480 | N44: 212 | O44: 8.520
A45: 158013 | B45: Rob Weekers | C45: Vriendschap en Strijd [1178] | D45: Master | F45: 231 | M45: 9.240 | N45: 231 | O45: 9.267
A46: 158140 | B46: Bart van Heugten | C46: Vriendschap en Strijd [1178] | D46: Senior | F46: 200 | M46: 8.000 | N46: 200 | O46: 7.800
A47: 158848 | B47: Bart Zijtveld | C47: Vriendschap en Strijd [1178] | D47: Senior | F47: 225 | M47: 9.000 | N47: 225 | O47: 8.213
A48: 166476 | B48: Huub Heutmekers | C48: Vriendschap en Strijd [1178] | D48: Master | F48: 187 | M48: 7.480 | N48: 187 | O48: 8.607
A49: 169830 | B49: Raoul Frencken | C49: Vriendschap en Strijd [1178] | D49: Cadet | F49: 178 | M49: 7.120 | N49: 178 | O49: 7.260
A50: 173790 | B50: Juul van Berkel | C50: Vriendschap en Strijd [1178] | D50: asp. 11-12 | F50: 195 | M50: 7.800 | N50: 195 | O50: 7.747
A51: 143765 | B51: Ronald Parren | C51: Vriendschap en Strijd [1178] | D51: Senior | M51: 0.000 | N51: 0 | O51: 7.960
B52: Zoë Antonise | C52: Vriendschap en Strijd [1178] | D52: asp. 11-12 | F52: 82 | M52: 3.280 | N52: 82 | P52: niet aangemeld voor competitie
A53: 105017 | B53: Harrie de Wit | C53: Wilhelmina [1179] | D53: Veteraan | M53: 0.000 | N53: 0 | O53: 7.727
A54: 116058 | B54: Martin van Cranenbroek | C54: Wilhelmina [1179] | D54: Master | F54: 194 | M54: 7.760 | N54: 194 | O54: 7.000
A55: 119257 | B55: Thijs van de Loo | C55: Wilhelmina [1179] | D55: Veteraan | F55: 218 | M55: 8.720 | N55: 218 | O55: 8.667
A56: 119264 | B56: Luc van de Loo | C56: Wilhelmina [1179] | D56: Senior | F56: 198 | M56: 7.920 | N56: 198 | O56: 8.440
A57: 119271 | B57: Ronnie Gielen | C57: Wilhelmina [1179] | D57: Koning | F57: 219 | M57: 8.760 | N57: 219 | O57: 9.173
A58: 133492 | B58: Mart van Thuijl | C58: Wilhelmina [1179] | D58: Veteraan | M58: 0.000 | N58: 0 | O58: 8.107
A59: 133494 | B59: Martijn Geuns | C59: Wilhelmina [1179] | D59: Senior | F59: 202 | M59: 8.080 | N59: 202 | O59: 8.467
A60: 134897 | B60: Werner Bloemers | C60: Wilhelmina [1179] | D60: Senior | F60: 104 | M60: 4.160 | N60: 104 | O60: 4.907
A61: 134898 | B61: Ruud Westerveen | C61: Wilhelmina [1179] | D61: Veteraan | F61: 199 | M61: 7.960 | N61: 199 | O61: 8.200
A62: 135882 | B62: Anton Hermans | C62: Wilhelmina [1179] | D62: Senior | F62: 219 | M62: 8.760 | N62: 219 | O62: 8.773
A63: 135880 | B63: Hans van Bussel | C63: Wilhelmina [1179] | D63: Senior | F63: 212 | M63: 8.480 | N63: 212 | O63: 8.413
A64: 135885 | B64: Harrie de Wit | C64: Wilhelmina [1179] | D64: Veteraan | M64: 0.000 | N64: 0
A65: 155195 | B65: Frans van Nieuwenhoven | C65: Wilhelmina [1179] | D65: Master | F65: 201 | M65: 8.040 | N65: 201 | O65: 8.133
A66: 155199 | B66: Tim Vaes | C66: Wilhelmina [1179] | D66: Senior | F66: 209 | M66: 8.360 | N66: 209 | O66: 8.927
A67: 155209 | B67: Chantal Hekers | C67: Wilhelmina [1179] | D67: Senior | E67: D | F67: 226 | M67: 9.040 | N67: 226 | O67: 8.380
A68: 156786 | B68: Elfrie van Lierop | C68: Wilhelmina [1179] | D68: Senior | E68: D | F68: 219 | M68: =F68/25 -> 8.760 | N68: =SUM(F68:L68) -> 219 | O68: 8.507
A69: 158291 | B69: Marlies Hekers | C69: Wilhelmina [1179] | D69: Senior | E69: D | F69: 211 | M69: 8.440 | N69: 211 | O69: 8.333
A70: 167103 | B70: Kim Koolen | C70: Wilhelmina [1179] | D70: Cadet | E70: D | F70: 198 | M70: 7.920 | N70: 198 | O70: 7.873
A71: 168614 | B71: Stefan Koolen | C71: Wilhelmina [1179] | D71: Senior | F71: 143 | M71: 5.720 | N71: 143 | O71: 6.840
A72: 174479 | B72: Thorben Delsing | C72: Wilhelmina [1179] | D72: Cadet | F72: 206 | M72: 8.240 | N72: 206 | O72: 8.673
A73: 143724 | B73: Johan van Lierop | C73: Wilhelmina [1179] | D73: Master | F73: 211 | M73: 8.440 | N73: 211
A74: 105048 | B74: Will Donkers | C74: Willem Tell [1180] | D74: Master | F74: 192 | M74: 7.680 | N74: 192
A75: 133261 | B75: Paul Hermans | C75: Willem Tell [1180] | D75: Master | F75: 196 | M75: 7.840 | N75: 196 | O75: 8.507
A76: 142534 | B76: Peter Ghielen | C76: Willem Tell [1180] | D76: Veteraan | M76: 0.000 | N76: 0
A77: 152730 | B77: Hennie van den Einden | C77: Willem Tell [1180] | D77: Master | F77: 210 | M77: 8.400 | N77: 210 | O77: 8.128
A78: 162501 | B78: Irma van Doren de Groot | C78: Willem Tell [1180] | D78: Senior | E78: D | M78: 0.000 | N78: 0
A79: 168768 | B79: Stefan Wetzels | C79: Willem Tell [1180] | D79: Senior | F79: 193 | M79: 7.720 | N79: 193 | O79: 7.680
A80: 168767 | B80: Tijl Peters | C80: Willem Tell [1180] | D80: Senior | F80: 171 | M80: 6.840 | N80: 171
A81: 156548 | B81: Bas Akkerman | C81: Willem Tell [1180] | D81: Senior | F81: 193 | M81: 7.720 | N81: 193 | P81: niet aangemeld voor competitie
A82: 172000 | B82: Davy Lemmen | C82: HBV Midden Limburg [1289] | D82: Senior | M82: 0.000 | N82: 0
A83: 170364 | B83: Mike Sijbers | C83: HBV Midden Limburg [1289] | D83: Junior | F83: 229 | M83: 9.160 | N83: 229
A84: 174356 | B84: Rob Janssen | C84: HBV Midden Limburg [1289] | D84: asp. 11-12 | F84: 207 | M84: 8.280 | N84: 207
A85: 171578 | B85: Geert Theelen | C85: HBV Midden Limburg [1289] | F85: 191 | M85: 7.640 | N85: 191
A86: 174748 | B86: Jaymee Frissen | C86: HBV Midden Limburg [1289] | D86: Senior | E86: D | F86: 211 | M86: 8.440 | N86: 211
A87: 171579 | B87: Leon Theelen | C87: HBV Midden Limburg [1289] | D87: Senior | F87: 224 | M87: 8.960 | N87: 224
A88: 157072 | B88: Bram Feder | C88: HBV Midden Limburg [1289] | D88: Senior | F88: 240 | M88: 9.600 | N88: 240
A89: 110150 | B89: Martien Heijkers | C89: Lauwerkrans Ell [1308] | D89: Master | F89: 233 | M89: 9.320 | N89: 233 | O89: 8.947
A90: 110153 | B90: Jan Custers | C90: Lauwerkrans Ell [1308] | D90: Veteraan | F90: 214 | M90: 8.560 | N90: 214 | O90: 8.793
A91: 117011 | B91: Harie Heijkers | C91: Lauwerkrans Ell [1308] | D91: Veteraan | F91: 190 | M91: 7.600 | N91: 190 | O91: 7.647
A92: 117024 | B92: Alfons Custers | C92: Lauwerkrans Ell [1308] | D92: Master | F92: 215 | M92: 8.600 | N92: 215 | O92: 8.392
A93: 117028 | B93: Henk Heijkers | C93: Lauwerkrans Ell [1308] | D93: Veteraan | F93: 201 | M93: 8.040 | N93: 201 | O93: 8.300
A94: 119831 | B94: Emiel Custers | C94: Lauwerkrans Ell [1308] | D94: Koning | F94: 237 | M94: 9.480 | N94: 237
A95: 135893 | B95: Gert-Jan Heijkers | C95: Lauwerkrans Ell [1308] | D95: Senior | F95: 225 | M95: 9.000 | N95: 225
A96: 139867 | B96: Antoinette Heijkers | C96: Lauwerkrans Ell [1308] | D96: Senior | E96: D | F96: 226 | M96: 9.040 | N96: 226 | O96: 8.393
A97: 150608 | B97: Ruud Greijmans | C97: Lauwerkrans Ell [1308] | D97: Master | F97: 207 | M97: 8.280 | N97: 207 | O97: 8.433
A98: 150828 | B98: T. Eerkens | C98: Lauwerkrans Ell [1308] | D98: Senior | F98: 222 | M98: 8.880 | N98: 222 | O98: 8.813
A99: 175052 | B99: Jesse Greijmans | C99: Lauwerkrans Ell [1308] | D99: Senior | F99: 223 | M99: 8.920 | N99: 223
A100: 132134 | B100: Axel Janssen | C100: Grensschutters [1342] | D100: Senior | F100: 224 | M100: 8.960 | N100: 224 | O100: 9.073
A101: 135067 | B101: Jac Franssen | C101: Grensschutters [1342] | F101: 218 | M101: 8.720 | N101: 218 | O101: 8.760
A102: 139829 | B102: Jordi Hendrikx | C102: Grensschutters [1342] | D102: Senior | F102: 234 | M102: 9.360 | N102: 234 | O102: 9.420
A103: 139838 | B103: Frank Baets | C103: Grensschutters [1342] | D103: Senior | F103: 236 | M103: 9.440 | N103: 236 | O103: 9.153
A104: 143804 | B104: Bert Hendrikx | C104: Grensschutters [1342] | F104: 185 | M104: 7.400 | N104: 185
A105: 151086 | B105: Sharon Baets-van der Heijden | C105: Grensschutters [1342] | D105: Senior | E105: D | F105: 226 | M105: 9.040 | N105: 226 | O105: 8.907
A106: 157104 | B106: Jeu Wijnands | C106: Grensschutters [1342] | F106: 196 | M106: 7.840 | N106: 196
A107: 161786 | B107: Kevin Diels | C107: Grensschutters [1342] | D107: Senior | F107: 213 | M107: 8.520 | N107: 213 | O107: 8.820
A108: 167239 | B108: Stan Willemsen | C108: Grensschutters [1342] | D108: Cadet | F108: 217 | M108: 8.680 | N108: 217
A109: 135905 | B109: Victor van Hooijdonk | C109: The Archery Club [1392] | D109: Veteraan | M109: 0.000 | N109: 0 | O109: 8.233
A110: 140593 | B110: Rick Gehlen | C110: The Archery Club [1392] | D110: Senior | F110: 227 | M110: 9.080 | N110: 227 | O110: 9.013
A111: 171581 | B111: Chantal van Nooij | C111: The Archery Club [1392] | D111: Senior | E111: D | F111: 189 | M111: 7.560 | N111: 189 | O111: 7.700
A112: 172680 | B112: Chantal Maas | C112: The Archery Club [1392] | D112: Junior | E112: D | F112: 164 | M112: 6.560 | N112: 164 | O112: 7.707
A113: 172607 | B113: Mano de Kubber | C113: The Archery Club [1392] | D113: Cadet | F113: 152 | M113: 6.080 | N113: 152
A114: 174705 | B114: Rik Heijthuisen | C114: HBS De Ster 2.0 [1400] | D114: asp t/m 10 | F114: 208 | M114: 8.320 | N114: 208
A115: 174704 | B115: Cas Heijthuisen | C115: HBS De Ster 2.0 [1400] | D115: Cadet | M115: 0.000 | N115: 0
A116: 139810 | B116: Frank Hoogmans | C116: HBV Ons Genoegen [1402] | D116: Senior | F116: 226 | M116: 9.040 | N116: 226 | O116: 9.393
A117: 175138 | B117: Harrie Heijnen | C117: HBV Ons Genoegen [1402] | D117: Master | F117: 222 | M117: 8.880 | N117: 222
A118: 162646 | B118: Steve Wijler | C118: HBV Ons Genoegen [1402] | D118: Senior | F118: 247 | M118: 9.880 | N118: 247
A119: 166662 | B119: Kevin Slaats | C119: HBV Ons Genoegen [1402] | D119: Senior | F119: 214 | M119: 8.560 | N119: 214
A120: 173762 | B120: Jarne Bringmans | C120: HBV Ons Genoegen [1402] | D120: Cadet | M120: 0.000 | N120: 0
A121: 171553 | B121: Lex Vossen | C121: HBS Weert [1404] | D121: Cadet | F121: 212 | M121: 8.480 | N121: 212 | O121: 8.373
A122: 174349 | B122: Richard Rijntjes | C122: HBS Weert [1404] | D122: Master | F122: 204 | M122: 8.160 | N122: 204 | O122: 6.42
A123: 174350 | B123: Lisanne Rijntjes | C123: HBS Weert [1404] | D123: Cadet | E123: D | F123: 178 | M123: 7.120 | N123: 178 | O123: 5.133
A124: 156079 | B124: Mathijs Kees | C124: HBS Weert [1404] | D124: Senior | F124: 215 | M124: 8.600 | N124: 215 | O124: 8.453

Sheet Compound
A1: Scores 25m 1 pijl competitie 2019-2020 Regio 115 - Compound
A2: Bondsnr. | B2: Naam | C2: Vereniging | D2: 1 | E2: 2 | F2: 3 | G2: 4 | H2: 5 | I2: 6 | J2: 7 | K2: Gem. | L2: Tot. | M2: Vorig gem.
A3: 168831 | B3: Maikel Rietjens | C3: St. Hubertus [1171] | K3: =L3/25 -> 0.000 | L3: =SUM(D3:J3) -> 0
A4: 114142 | B4: Thieu Curvers | C4: Vriendschap en Strijd [1178] | D4: 228 | K4: =L4/25 -> 9.120 | L4: =SUM(D4:J4) -> 228 | M4: 9.160
A5: 118158 | B5: Anke Geraedts | C5: Vriendschap en Strijd [1178] | D5: 230 | K5: 9.200 | L5: 230 | M5: 9.367
A6: 159336 | B6: Patrick Weekers | C6: Vriendschap en Strijd [1178] | D6: 177 | K6: 7.080 | L6: 177 | M6: 8.320
A7: 174369 | B7: Adriaan Zijtveld | C7: Vriendschap en Strijd [1178] | D7: 222 | K7: 8.880 | L7: 222 | M7: 9.060
A8: 162500 | B8: Marcel van Doren | C8: Willem Tell [1180] | K8: 0.000 | L8: 0
A9: 141398 | B9: Ad Liebregts | C9: Grensschutters [1342] | D9: 237 | K9: 9.480 | L9: 237 | M9: 9.387
A10: 152241 | B10: Marjan Wassenberg-Nijssen | C10: Grensschutters [1342] | D10: 229 | K10: 9.160 | L10: 229 | M10: 9.167
A11: 162098 | B11: Annelies Hodzelmans | C11: Grensschutters [1342] | D11: 235 | K11: 9.400 | L11: 235 | M11: 9.367
A12: 110983 | B12: Michael Rudat | C12: Grensschutters [1342] | D12: 234 | K12: 9.360 | L12: 234
A13: 174197 | B13: Keano Ramakers | C13: The Archery Club [1392] | K13: 0.000 | L13: 0

Sheet Barebow
A1: Scores 25m 1 pijl competitie 2020-2021 Regio 115 - Barebow
A2: Bondsnr. | B2: Naam | C2: Vereniging | D2: 1 | E2: 2 | F2: 3 | G2: 4 | H2: 5 | I2: 6 | J2: 7 | K2: Gem. | L2: Tot. | M2: Vorig gem.
A3: 107274 | B3: J.J.M. Jonkers | C3: Wilhelmina [1179] | D3: 0 | K3: =L3/25 -> 0.00 | L3: =SUM(D3:J3) -> 0 | M3: 7.753
A4: 168753 | B4: Koos Heijnen | C4: HBV Ons Genoegen [1402] | D4: 93 | K4: =L4/25 -> 3.72 | L4: =SUM(D4:J4) -> 93
A5: 167235 | B5: Harold Janshen | C5: HBV Ons Genoegen [1402] | D5: 133 | K5: 5.32 | L5: 133

Sheet Instinctive bow-longbow
A1: Scores 25m 1 pijl competitie 2020-2021 Regio 115
A3: Instinctive:
A4: Bondsnummer | B4: Naam | C4: Vereniging | D4: 1 | E4: 2 | F4: 3 | G4: 4 | H4: 5 | I4: 6 | J4: 7 | K4: Gem. | L4: Tot. | M4: Vorig gem.
A5: 104838 | B5: Ton Korten | C5: St. Hubertus [1171] | D5: 114 | K5: =L5/25 -> 4.56 | L5: =SUM(D5:J5) -> 114 | M5: 4.340
A6: 143829 | B6: Erik Segers | C6: St. Hubertus [1171] | D6: 117 | K6: =L6/25 -> 4.68 | L6: =SUM(D6:J6) -> 117 | M6: 5.033
A8: Longbow
A9: Bondsnummer | B9: Naam | C9: Vereniging | D9: 1 | E9: 2 | F9: 3 | G9: 4 | H9: 5 | I9: 6 | J9: 7 | K9: Gem. | L9: Tot. | M9: Vorig gem.
A10: 175711 | B10: Lesley Delsing | C10: Wilhelmina [1179] | D10: 137 | K10: =L10/25 -> 5.48 | L10: =SUM(D10:J10) -> 137

Sheet Regio Teamcompetitie
A1: Regio Teamcompetitie 2019-2020
A3: Competitieronde 1 | C3: Grensjagers Budel | Q3: Tussenstand:
A4: Poule 1 | I4: Poule 2 | Q4: POULE A
A5: V&S 1 | B5: =234+237+231+221 -> 923 | C5: 4 | D5: - | E5: 6 | F5: =233+225+222+237 -> 917 | G5: Lauwerkrans 1 | I5: Ontspanning | J5: =219+232+185+188 -> 824 | K5: 6 | L5: - | M5: 4 | N5: =212+218+200+187 -> 817 | O5: V&S 2 | Q5: Club | R5: Plaats | S5: W | T5: D | U5: L | V5: Sets voor | W5: Sets tegen | X5: Set saldo | Y5: teamscore | Z5: Punten
A6: St. Hubertus | B6: =216+214+227+231 -> 888 | C6: 10 | D6: - | E6: 0 | F6: =226+192+223+155 -> 796 | G6: Grensjagers | I6: Lauwerkrans 2 | J6: =201+223+226+214 -> 864 | K6: 6 | L6: - | M6: 4 | N6: =211+226+198+201 -> 836 | O6: Wilhelmina 2 | Q6: Grensschutters 1 | R6: Reuver | S6: 1 | T6: 0 | U6: 0 | V6: =$C$7+$E$12+$E$17+$C$24+$C$30 -> 10 | W6: =$E$7+$C$12+$C$17+$E$24+$E$30 -> 0 | X6: =V6-W6 -> 10 | Y6: =$B$7+$F$12+$F$17+$B$24+$B$30 -> 920 | Z6: =S6*2+T6*1 -> 2
A7: Grensschutters | B7: =226+224+234+236 -> 920 | C7: 10 | D7: - | E7: 0 | F7: =209+219+219+219 -> 866 | G7: Wilhelmina 1 | I7: The Archery Club | J7: =227+164+152+189 -> 732 | K7: 3 | L7: - | M7: 7 | N7: =178+212+204+215 -> 809 | O7: HBS Weert | Q7: St. Hubertus 1 | R7: Stramproy | S7: 1 | T7: 0 | U7: 0 | V7: =$C$6+$C$11+$C$18+$C$25+$E$30 -> 10 | W7: =$E$6+$E$11+$E$18+$E$25+$C$30 -> 0 | X7: 10 | Y7: =$B$6+$B$11+$B$18+$B$25+$F$30 -> 888 | Z7: 2
Q8: Lauwerkrans 1 | R8: Ell | S8: 1 | T8: 0 | U8: 0 | V8: =$E$5+$C$12+$C$19+$E$25+$E$31 -> 6 | W8: =$C$5+$E$12+$E$19+$C$25+$C$31 -> 4 | X8: 2 | Y8: =$F$5+$B$12+$B$19+$F$25+$F$31 -> 917 | Z8: 2
A9: Competitieronde 2 | C9: Lauwerkrans Ell | Q9: V&S 1 | R9: Hunsel | S9: 0 | T9: 0 | U9: 1 | V9: =$C$5+$E$11+$C$17+$E$23+$C$29 -> 4 | W9: =$E$5+$C$11+$E$17+$C$23+$E$29 -> 6 | X9: -2 | Y9: =$B$5+$F$11+$B$17+$F$23+$B$29 -> 923 | Z9: 0
A10: Poule 1 | I10: Poule 2 | Q10: Wilhelmina 1 | R10: Ospel | S10: 0 | T10: 0 | U10: 1 | V10: =$E$7+$C$13+$E$18+$C$23+$C$31 -> 0 | W10: =$C$7+$E$13+$C$18+$E$23+$E$31 -> 10 | X10: -10 | Y10: =$F$7+$B$13+$F$18+$B$23+$B$31 -> 866 | Z10: 0
A11: St. Hubertus | C11: 0 | D11: - | E11: 0 | G11: V&S 1 | I11: Ontspanning | K11: 0 | L11: - | M11: 0 | O11: Wilhelmina 2 | Q11: Grensjagers 1 | R11: Budel | S11: 0 | T11: 0 | U11: 1 | V11: =$E$6+$E$13+$E$19+$E$24+$E$29 -> 0 | W11: =$C$6+$C$13+$C$19+$C$24+$C$29 -> 10 | X11: -10 | Y11: =$F$6+$F$13+$F$19+$F$24+$F$29 -> 796 | Z11: 0
A12: Lauwerkrans 1 | C12: 0 | D12: - | E12: 0 | G12: Grensschutters | I12: V&S 2 | K12: 0 | L12: - | M12: 0 | O12: HBS Weert
A13: Wilhelmina 1 | C13: 0 | D13: - | E13: 0 | G13: Grensjagers | I13: The Archery Club | K13: 0 | L13: - | M13: 0 | O13: Lauwerkrans 2 | Q13: POULE B
Q14: Club | R14: Plaats | S14: W | T14: D | U14: L | V14: Sets voor | W14: Sets tegen | X14: Set saldo | Y14: teamscore | Z14: Punten
A15: Competitieronde 3 | C15: St. Hubertus Stramproy | Q15: HBS Weert | R15: Weert | S15: 1 | T15: 0 | U15: 0 | V15: =$M$7+$M$12+$M$17+$K$24+$M$31 -> 7 | W15: =$K$7+$K$12+$K$17+$M$24+$K$31 -> 3 | X15: =V15-W15 -> 4 | Y15: =$N$7+$N$12+$N$17+$J$24+$N$31 -> 809 | Z15: =S15*2+T15*1 -> 2
A16: Poule 1 | I16: Poule 2 | Q16: Lauwerkrans 2 | R16: Ell | S16: 1 | T16: 0 | U16: 0 | V16: =$K$6+$M$13+$M$18+$M$24+$M$29 -> 6 | W16: =$M$6+$K$13+$K$18+$K$24+$K$29 -> 4 | X16: 2 | Y16: =$J$6+$N$13+$N$18+$N$24+$N$29 -> 864 | Z16: 2
A17: V&S 1 | C17: 0 | D17: - | E17: 0 | G17: Grensschutters | I17: Ontspanning | K17: 0 | L17: - | M17: 0 | O17: HBS Weert | Q17: Ontspanning | R17: Tungelroy | S17: 1 | T17: 0 | U17: 0 | V17: =$K$5+$K$11+$K$17+$K$23+$K$29 -> 6 | W17: =$M$5+$M$11+$M$17+$M$23+$M$29 -> 4 | X17: 2 | Y17: =$J$5+$J$11+$J$17+$J$23+$J$29 -> 824 | Z17: 2
A18: St. Hubertus | C18: 0 | D18: - | E18: 0 | G18: Wilhelmina 1 | I18: V&S 2 | K18: 0 | L18: - | M18: 0 | O18: Lauwerkrans 2 | Q18: Wilhelmina 2 | R18: Ospel | S18: 0 | T18: 0 | U18: 1 | V18: =$M$6+$M$11+$M$19+$K$25+$K$31 -> 4 | W18: =$K$6+$K$11+$K$19+$M$25+$M$31 -> 6 | X18: -2 | Y18: =$N$6+$N$11+$N$19+$J$25+$J$31 -> 836 | Z18: 0
A19: Lauwerkrans | C19: 0 | D19: - | E19: 0 | G19: Grensjagers | I19: The Archery Club | K19: 0 | L19: - | M19: 0 | O19: Wilhelmina 2 | Q19: V&S 2 | R19: Hunsel | S19: 0 | T19: 0 | U19: 1 | V19: =$M$5+$K$12+$K$18+$M$25+$K$30 -> 4 | W19: =$K$5+$M$12+$M$18+$K$25+$M$30 -> 6 | X19: -2 | Y19: =$N$5+$J$12+$J$18+$N$25+$N$30 -> 817 | Z19: 0
Q20: The Archery Club | R20: Roermond | S20: 0 | T20: 0 | U20: 1 | V20: =$K$7+$K$13+$K$19+$M$23+$M$30 -> 3 | W20: =$M$7+$M$13+$M$19+$K$23+$K$30 -> 7 | X20: -4 | Y20: =$J$7+$J$13+$J$19+$N$23+$N$30 -> 732 | Z20: 0
A21: Competitieronde 4 | C21: Vriendschap en Strijd Hunsel
A22: Poule 1 | I22: Poule 2
A23: Wilhelmina 1 | C23: 0 | D23: - | E23: 0 | G23: V&S 1 | I23: Ontspanning | K23: 0 | L23: - | M23: 0 | O23: The Archery Club
A24: Grensschutters | C24: 0 | D24: - | E24: 0 | G24: Grensjagers | I24: HBS Weert | K24: 0 | L24: - | M24: 0 | O24: Lauwerkrans 2
A25: St. Hubertus | C25: 0 | D25: - | E25: 0 | G25: Lauwerkrans 1 | I25: Wilhelmina 2 | K25: 0 | L25: - | M25: 0 | O25: V&S 2
A27: Competitieronde 5 | C27: Ons Genoegen Roggel
A28: Poule 1 | I28: Poule 2
A29: V&S 1 | C29: 0 | D29: - | E29: 0 | G29: Grensjagers | I29: Ontspanning | K29: 0 | L29: - | M29: 0 | O29: Lauwerkrans 2
A30: Grensschutters | C30: 0 | D30: - | E30: 0 | G30: St. Hubertus | I30: V&S 2 | K30: 0 | L30: - | M30: 0 | O30: The Archery Club
A31: Wilhelmina 1 | C31: 0 | D31: - | E31: 0 | G31: Lauwerkrans 1 | I31: Wilhelmina 2 | K31: 0 | L31: - | M31: 0 | O31: HBS Weert

Sheet Opkomstpercentage
A1: Opkomstpercentage
A3: 1e BW Grensjagers Budel
B4: Opgegeven | C4: Percentage
A5: SHS | B5: 12 | C5: 100.00
A6: GJB | B6: 12 | C6: 100.00
A7: ONT | B7: 11 | C7: 100.00
A8: V&S | B8: 19 | C8: 100.00
A9: WHO | B9: 23 | C9: 100.00
A10: WTN | B10: 8 | C10: 100.00
A11: HML | B11: 7 | C11: 100.00
A12: LKE | B12: 11 | C12: 100.00
A13: GSR | B13: 13 | C13: 100.00
A14: TAC | B14: 6 | C14: 100.00
A15: DSE | B15: 2 | C15: 100.00
A16: OGR | B16: 7 | C16: 100.00
A17: HBW | B17: 4 | C17: 100.00
A19: 2e BW Lauwerkrans Ell
B20: Opgegeven | C20: Percentage
A21: SHS | B21: 12
A22: GJB | B22: 12
A23: ONT | B23: 11
A24: V&S | B24: 19
A25: WHO | B25: 23
A26: WTN | B26: 8
A27: HML | B27: 7
A28: LKE | B28: 11
A29: GSR | B29: 13
A30: TAC | B30: 6
A31: DSE | B31: 2
A32: OGR | B32: 7
A33: HBW | B33: 4
A35: 3e BW St. Hubertus Stramproy
B36: Opgegeven | C36: Percentage
A37: SHS | B37: 12
A38: GJB | B38: 12
A39: ONT | B39: 11
A40: V&S | B40: 19
A41: WHO | B41: 23
A42: WTN | B42: 8
A43: HML | B43: 7
A44: LKE | B44: 11
A45: GSR | B45: 13
A46: TAC | B46: 6
A47: DSE | B47: 2
A48: OGR | B48: 7
A49: HBW | B49: 4
A51: 4e BW Vriendschap en Strijd Hunsel
B52: Opgegeven | C52: Percentage
A53: SHS | B53: 12
A54: GJB | B54: 12
A55: ONT | B55: 11
A56: V&S | B56: 19
A57: WHO | B57: 23
A58: WTN | B58: 8
A59: HML | B59: 7
A60: LKE | B60: 11
A61: GSR | B61: 13
A62: TAC | B62: 6
A63: DSE | B63: 2
A64: OGR | B64: 7
A65: HBW | B65: 4
A67: 5e BW Ons Genoegen Roggel
B68: Opgegeven | C68: Percentage
A69: SHS | B69: 12
A70: GJB | B70: 12
A71: ONT | B71: 11
A72: V&S | B72: 19
A73: WHO | B73: 23
A74: WTN | B74: 8
A75: HML | B75: 7
A76: LKE | B76: 11
A77: GSR | B77: 13
A78: TAC | B78: 6
A79: DSE | B79: 2
A80: OGR | B80: 7
A81: HBW | B81: 4
A83: 6e BW Grensschutters Reuver
B84: Opgegeven | C84: Percentage
A85: SHS | B85: 12
A86: GJB | B86: 12
A87: ONT | B87: 11
A88: V&S | B88: 19
A89: WHO | B89: 23
A90: WTN | B90: 8
A91: HML | B91: 7
A92: LKE | B92: 11
A93: GSR | B93: 13
A94: TAC | B94: 6
A95: DSE | B95: 2
A96: OGR | B96: 7
A97: HBW | B97: 4
A99: 7e BW Ontspanning Tungelroy
B100: Opgegeven | C100: Percentage
A101: SHS | B101: 12
A102: GJB | B102: 12
A103: ONT | B103: 11
A104: V&S | B104: 19
A105: WHO | B105: 23
A106: WTN | B106: 8
A107: HML | B107: 7
A108: LKE | B108: 11
A109: GSR | B109: 13
A110: TAC | B110: 6
A111: DSE | B111: 2
A112: OGR | B112: 7
A113: HBW | B113: 4

Sheet Uitslag
A1: Uitslagen 1e BW 2020-2021
A2: Organisatie: Grensjagers Budel
A4: Hoogste Koning | B4: Emiel Custers | C4: Lauwerkrans Ell | D4: 237
A6: Hoogste Senior | B6: Bram Feder | C6: HBV Midden Limburg | D6: 240
A8: Hoogste Dame | B8: Chantal Hekers | C8: Wilhelmina Ospel | D8: 226 | E8: 8 x 10
A10: Hoogste Master | B10: Theo Baetsen | C10: Vriendschap en Strijd Hunsel | D10: 237
A12: Hoogste Veteraan | B12: Herman Geraedts | C12: Vriendschap en Strijd Hunsel | D12: 218
A14: Hoogste Cadet | B14: Jelte Steer | C14: Grensjagers Budel | D14: 225
A16: Hoogste Junior | B16: David Verkoulen | C16: Ontspanning Tungelroy | D16: 232
A18: Hoogste Aspirant t/m 10 jaar | B18: Rik Heijthuisen | C18: De Ster 2.0 Echt | D18: 208
A20: Hoogste Aspirant 11-12 jaar | B20: Rob Janssen | C20: HBV Midden Limburg | D20: 207
A22: Hoogste Compound | B22: Ad Liebregts | C22: Grensschutters Reuver | D22: 237
A24: Hoogste Barebow | B24: Harold Janshen | C24: Ons Genoegen Roggel | D24: 133
A26: Hoogste Instinctive Bow | B26: Eric Segers | C26: St. Hubertus Stramproy | D26: 117
A28: Hoogste Longbow | B28: Lesley Delsing | C28: Wilhelmina Ospel | D28: 137
